fUST/lending_fUST_20260525
["ID","MTS","AMOUNT","RATE_DAILY","PERIOD"]
[422981172,1779701444000,-628.47,9.041e-05,2]
[422981163,1779701444000,-4566.21,8.942e-05,2]
[422981175,1779701444000,-500.0,9.216e-05,2]
[422981174,1779701444000,-464.55,9.041e-05,2]
[422981169,1779701444000,-500.0,9.041e-05,2]
[422981168,1779701444000,-581.41,9.041e-05,2]
[422981173,1779701444000,-500.0,9.041e-05,2]
[422981164,1779701444000,-500.0,8.942e-05,2]
[422981167,1779701444000,-334.81,9.041e-05,2]
[422981165,1779701444000,-822.31,9.04e-05,2]
[422981166,1779701444000,-500.0,9.041e-05,2]
[422981171,1779701444000,-500.0,9.041e-05,2]
[422981176,1779701444000,-1829.06593621,9.216e-05,2]
[422981170,1779701444000,-500.0,9.041e-05,2]
[422981189,1779701446000,-500.0,9.315e-05,2]
[422981186,1779701446000,-500.0,9.216e-05,2]
[422981184,1779701446000,-2737.14406379,9.216e-05,2]
[422981187,1779701446000,-210.34707069,9.258e-05,7]
[422981191,1779701446000,-581.41,9.315e-05,2]
[422981198,1779701446000,-500.0,9.315e-05,2]
[422981203,1779701446000,-2370.50419519,9.49e-05,2]
[422981194,1779701446000,-500.0,9.315e-05,2]
[422981193,1779701446000,-359.54055075,9.315e-05,2]
[422981196,1779701446000,-500.0,9.315e-05,2]
[422981200,1779701446000,-720.0,9.403e-05,2]
[422981202,1779701446000,-365.47071981,9.47e-05,7]
[422981229,1779701447000,-4566.21,9.764e-05,2]
[422981219,1779701447000,-500.0,8.219e-05,2]
[422981222,1779701447000,-420.69414138,9.558e-05,7]
[422981221,1779701447000,-500.0,9.49e-05,2]
[422981220,1779701447000,-2195.70580481,9.49e-05,2]
[422981223,1779701447000,-188.47254885,9.558e-05,4]
[422981224,1779701447000,-500.0,9.589e-05,2]
[422981225,1779701447000,-581.41,9.589e-05,2]
[422981228,1779701447000,-500.0,9.589e-05,2]
[422981232,1779701447000,-581.41,9.863e-05,2]
[422981227,1779701447000,-500.0,9.589e-05,2]
[422981226,1779701447000,-500.0,9.589e-05,2]
[422981238,1779701447000,-457.6234085,0.0001,2]
[422981231,1779701447000,-377.71,9.863e-05,2]
[422981235,1779701447000,-500.0,9.863e-05,2]
[422981236,1779701447000,-500.0,9.863e-05,2]
[422981237,1779701447000,-9209.27063418,0.0001,2]
[422981233,1779701447000,-500.0,9.863e-05,2]
[422981230,1779701447000,-500.0,9.764e-05,2]
[422981239,1779701472000,-3228.68,8.324e-05,2]
[422981240,1779701489000,-1771.32,8.324e-05,2]
[422981241,1779701506000,-500.0,8.219e-05,2]
[422981249,1779701988000,-300.0,6.631e-05,2]
[422981248,1779701988000,-5000.0,6.598e-05,2]
[422981250,1779701988000,-150.0,6.632e-05,2]
[422981247,1779701988000,-5000.0,6.532e-05,2]
[422981251,1779701988000,-530.0,6.731e-05,2]
[422981256,1779701988000,-300.0,6.935e-05,2]
[422981252,1779701988000,-300.0,6.799e-05,2]
[422981254,1779701988000,-300.0,6.935e-05,2]
[422981255,1779701988000,-300.0,6.935e-05,2]
[422981257,1779701988000,-300.0,6.935e-05,2]
[422981253,1779701988000,-300.0,6.935e-05,2]
[422981260,1779701989000,-300.0,6.935e-05,2]
[422981258,1779701989000,-300.0,6.935e-05,2]
[422981261,1779701989000,-300.0,6.935e-05,2]
[422981263,1779701989000,-300.0,6.935e-05,2]
[422981259,1779701989000,-300.0,6.935e-05,2]
[422981264,1779701989000,-300.0,6.935e-05,2]
[422981267,1779701989000,-300.0,6.935e-05,2]
[422981265,1779701989000,-300.0,6.935e-05,2]
[422981266,1779701989000,-300.0,6.935e-05,2]
[422981262,1779701989000,-300.0,6.935e-05,2]
[422981274,1779702018000,-5000.0,7.002e-05,2]
[422981273,1779702018000,-5000.0,6.932e-05,2]
[422981283,1779702034000,-5000.0,6.863e-05,2]
[422981282,1779702034000,-5000.0,6.794e-05,2]
[422981284,1779702049000,-5000.0,7.002e-05,2]
[422981286,1779702049000,-300.0,7.213e-05,2]
[422981285,1779702049000,-600.0,7.073e-05,2]
[422981287,1779702049000,-300.0,7.213e-05,2]
[422981289,1779702049000,-300.0,7.213e-05,2]
[422981288,1779702049000,-300.0,7.213e-05,2]
[422981290,1779702049000,-300.0,7.213e-05,2]
[422981291,1779702049000,-300.0,7.213e-05,2]
[422981294,1779702049000,-300.0,7.213e-05,2]
[422981293,1779702049000,-300.0,7.213e-05,2]
[422981296,1779702049000,-300.0,7.213e-05,2]
[422981295,1779702049000,-300.0,7.213e-05,2]
[422981297,1779702049000,-300.0,7.213e-05,2]
[422981298,1779702049000,-300.0,7.213e-05,2]
[422981299,1779702049000,-300.0,7.213e-05,2]
[422981300,1779702049000,-200.0,7.213e-05,2]
[422981292,1779702049000,-300.0,7.213e-05,2]
[422981316,1779702211000,-300.0,7.356e-05,2]
[422981315,1779702211000,-300.0,7.356e-05,2]
[422981314,1779702211000,-300.0,7.356e-05,2]
[422981313,1779702211000,-300.0,7.356e-05,2]
[422981308,1779702211000,-150.0,7.105e-05,2]
[422981311,1779702211000,-300.0,7.356e-05,2]
[422981310,1779702211000,-5000.0,7.141e-05,2]
[422981309,1779702211000,-300.0,7.14e-05,2]
[422981307,1779702211000,-5000.0,7.07e-05,2]
[422981317,1779702211000,-300.0,7.356e-05,2]
[422981312,1779702211000,-300.0,7.356e-05,2]
[422981318,1779702211000,-300.0,7.356e-05,2]
[422981323,1779702211000,-300.0,7.356e-05,2]
[422981319,1779702211000,-300.0,7.356e-05,2]
[422981320,1779702211000,-300.0,7.356e-05,2]
[422981331,1779702211000,-500.0,8.219e-05,2]
[422981329,1779702211000,-500.43591235,8.219e-05,2]
[422981328,1779702211000,-500.0,8.219e-05,2]
[422981326,1779702211000,-420.0,7.854e-05,2]
[422981330,1779702211000,-500.0,8.219e-05,2]
[422981325,1779702211000,-300.0,7.356e-05,2]
[422981324,1779702211000,-300.0,7.356e-05,2]
[422981322,1779702211000,-300.0,7.356e-05,2]
[422981321,1779702211000,-300.0,7.356e-05,2]
[422981327,1779702211000,-500.0,8.219e-05,2]
[422981340,1779702212000,-500.0,8.219e-05,2]
[422981346,1779702212000,-500.0,8.219e-05,2]
[422981345,1779702212000,-500.0,8.219e-05,2]
[422981344,1779702212000,-500.0,8.219e-05,2]
[422981347,1779702212000,-506.78,8.219e-05,2]
[422981342,1779702212000,-500.0,8.219e-05,2]
[422981341,1779702212000,-500.0,8.219e-05,2]
[422981334,1779702212000,-500.0,8.219e-05,2]
[422981338,1779702212000,-154.49300419,8.219e-05,2]
[422981336,1779702212000,-500.0,8.219e-05,2]
[422981337,1779702212000,-621.41514891,8.219e-05,2]
[422981335,1779702212000,-500.0,8.219e-05,2]
[422981333,1779702212000,-500.0,8.219e-05,2]
[422981332,1779702212000,-517.92,8.219e-05,2]
[422981339,1779702212000,-500.0,8.219e-05,2]
[422981349,1779702212000,-500.0,8.219e-05,2]
[422981343,1779702212000,-520.41,8.219e-05,2]
[422981351,1779702212000,-536.79,8.219e-05,2]
[422981366,1779702212000,-500.0,8.392e-05,2]
[422981365,1779702212000,-600.0,8.382e-05,2]
[422981364,1779702212000,-5287.74776921,8.293e-05,2]
[422981363,1779702212000,-29414.7088654,8.293e-05,2]
[422981362,1779702212000,-570.58396529,8.224e-05,2]
[422981360,1779702212000,-252.0885171,8.219e-05,2]
[422981361,1779702212000,-523.03,8.219e-05,2]
[422981359,1779702212000,-500.0,8.219e-05,2]
[422981348,1779702212000,-525.53,8.219e-05,2]
[422981358,1779702212000,-500.0,8.219e-05,2]
[422981350,1779702212000,-500.0,8.219e-05,2]
[422981353,1779702212000,-500.0,8.219e-05,2]
[422981354,1779702212000,-184.30144275,8.219e-05,2]
[422981357,1779702212000,-500.0,8.219e-05,2]
[422981355,1779702212000,-500.0,8.219e-05,2]
[422981356,1779702212000,-547.27,8.219e-05,2]
[422981352,1779702212000,-500.0,8.219e-05,2]
[422981377,1779702213000,-500.0,8.493e-05,2]
[422981378,1779702213000,5000.0,6.999e-05,2]
[422981376,1779702213000,-193.92,8.493e-05,2]
[422981374,1779702213000,-500.0,8.493e-05,2]
[422981375,1779702213000,-500.0,8.493e-05,2]
[422981372,1779702213000,-500.0,8.392e-05,2]
[422981371,1779702213000,-500.0,8.392e-05,2]
[422981369,1779702213000,-500.0,8.392e-05,2]
[422981370,1779702213000,-500.0,8.392e-05,2]
[422981368,1779702213000,-584.61442371,8.392e-05,2]
[422981367,1779702213000,-3614.92,8.392e-05,2]
[422981373,1779702213000,-500.0,8.493e-05,2]
[422981379,1779702216000,500.0,8.392e-05,2]
[422981382,1779702445000,-430.98192296,8.055e-05,2]
[422981388,1779702632000,-4821.69605822,7.894e-05,2]
[422981399,1779702641000,-1542.91708431,7.974e-05,2]
[422981398,1779702641000,-178.30394178,7.894e-05,2]
[422981426,1779702643000,-300.0,8.382e-05,2]
[422981427,1779702643000,-300.0,8.382e-05,2]
[422981425,1779702643000,-300.0,8.382e-05,2]
[422981424,1779702643000,-300.0,8.382e-05,2]
[422981428,1779702643000,-300.0,8.382e-05,2]
[422981429,1779702643000,-300.0,8.382e-05,2]
[422981430,1779702643000,-300.0,8.382e-05,2]
[422981431,1779702643000,-300.0,8.382e-05,2]
[422981423,1779702643000,-300.0,8.382e-05,2]
[422981433,1779702643000,-236.95600956,8.493e-05,2]
[422981435,1779702643000,-311.47,8.655e-05,2]
[422981434,1779702643000,-600.0,8.549e-05,2]
[422981436,1779702643000,-500.0,8.767e-05,2]
[422981437,1779702643000,-300.0,8.8e-05,2]
[422981438,1779702643000,-500.0,8.939e-05,2]
[422981432,1779702643000,-500.0,8.493e-05,2]
[422981420,1779702643000,-300.0,8.382e-05,2]
[422981411,1779702643000,-500.0,8.219e-05,2]
[422981421,1779702643000,-300.0,8.382e-05,2]
[422981403,1779702643000,-983.59412008,7.974e-05,2]
[422981440,1779702643000,-500.0,8.939e-05,2]
[422981406,1779702643000,-1280.23124973,7.974e-05,2]
[422981407,1779702643000,-378.2160755,8.054e-05,2]
[422981408,1779702643000,-821.7839245,8.054e-05,2]
[422981409,1779702643000,-150.0,8.096e-05,2]
[422981410,1779702643000,-300.0,8.217e-05,2]
[422981413,1779702643000,-215.97,8.219e-05,2]
[422981412,1779702643000,-250.20718993,8.219e-05,2]
[422981414,1779702643000,-500.0,8.219e-05,2]
[422981417,1779702643000,-300.0,8.382e-05,2]
[422981416,1779702643000,-500.0,8.381e-05,2]
[422981415,1779702643000,-253.31,8.219e-05,2]
[422981419,1779702643000,-300.0,8.382e-05,2]
[422981418,1779702643000,-300.0,8.382e-05,2]
[422981422,1779702643000,-300.0,8.382e-05,2]
[422981405,1779702643000,-1193.25754588,7.974e-05,2]
[422981439,1779702643000,-3464.3,8.939e-05,2]
[422981442,1779702643000,-500.0,9.041e-05,2]
[422981463,1779702643000,-864.0,0.00010344,2]
[422981464,1779702643000,-500.0,0.0001041,2]
[422981465,1779702643000,-3464.3,0.00010583,2]
[422981466,1779702643000,-500.0,0.00010684,2]
[422981467,1779702643000,-160.0,0.00010699,2]
[422981468,1779702643000,-160.0,0.00010699,2]
[422981469,1779702643000,-161.74769687,0.00010699,2]
[422981474,1779702643000,-184.55292731,0.000109,2]
[422981471,1779702643000,-184.55292731,0.000108,2]
[422981475,1779702643000,-500.0,0.00010958,2]
[422981473,1779702643000,-196.06258488,0.000109,2]
[422981470,1779702643000,-196.06258488,0.000108,2]
[422981472,1779702643000,-3464.3,0.00010857,2]
[422981477,1779702643000,-196.06258488,0.00011,2]
[422981441,1779702643000,-420.0,9.039e-05,2]
[422981462,1779702643000,-3464.3,0.00010309,2]
[422981458,1779702643000,-3464.3,0.00010035,2]
[422981476,1779702643000,-167.60536603,0.00010959,7]
[422981460,1779702643000,-177.0,0.00010096,2]
[422981457,1779702643000,-14333.10595732,0.0001,2]
[422981446,1779702643000,-183.6665112,9.331e-05,2]
[422981445,1779702643000,-500.0,9.315e-05,2]
[422981443,1779702643000,-3464.3,9.213e-05,2]
[422981452,1779702643000,-351.11968186,9.6e-05,2]
[422981449,1779702643000,-3464.3,9.487e-05,2]
[422981450,1779702643000,-500.0,9.487e-05,2]
[422981447,1779702643000,-8114.035688,9.331e-05,2]
[422981444,1779702643000,-500.0,9.213e-05,2]
[422981451,1779702643000,-500.0,9.589e-05,2]
[422981454,1779702643000,-500.0,9.761e-05,2]
[422981453,1779702643000,-3464.3,9.761e-05,2]
[422981456,1779702643000,-370.0,9.943e-05,2]
[422981455,1779702643000,-500.0,9.863e-05,2]
[422981459,1779702643000,-151.6,0.00010035,2]
[422981448,1779702643000,-720.0,9.403e-05,2]
[422981461,1779702643000,-500.0,0.00010136,2]
[422981499,1779702644000,-500.0,0.00012876,2]
[422981498,1779702644000,-3464.3,0.00012775,2]
[422981501,1779702644000,-3464.3,0.00013049,2]
[422981500,1779702644000,-152.0,0.0001304,7]
[422981494,1779702644000,-3464.3,0.00012501,2]
[422981497,1779702644000,-500.0,0.00012602,2]
[422981505,1779702644000,-3464.3,0.00013597,2]
[422981502,1779702644000,-384.01,0.0001315,2]
[422981504,1779702644000,-750.59202863,0.00013323,2]
[422981506,1779702644000,-1000.0,0.00013699,2]
[422981508,1779702644000,-492.0,0.00013768,2]
[422981507,1779702644000,-1000.0,0.00013768,2]
[422981511,1779702644000,-3464.3,0.00014145,2]
[422981495,1779702644000,-1000.0,0.00012516,2]
[422981503,1779702644000,-2713.70797137,0.00013323,2]
[422981492,1779702644000,-3464.3,0.00012227,2]
[422981487,1779702644000,-3464.3,0.00011679,2]
[422981493,1779702644000,-500.0,0.00012328,2]
[422981509,1779702644000,-3464.3,0.00013871,2]
[422981478,1779702644000,-184.55292731,0.00011,2]
[422981479,1779702644000,-196.06258488,0.000111,2]
[422981482,1779702644000,-196.06258488,0.000112,2]
[422981480,1779702644000,-184.55292731,0.000111,2]
[422981481,1779702644000,-3464.3,0.00011131,2]
[422981496,1779702644000,-244.0,0.00012516,2]
[422981485,1779702644000,-3464.3,0.00011405,2]
[422981483,1779702644000,-500.0,0.00011232,2]
[422981486,1779702644000,-500.0,0.00011506,2]
[422981484,1779702644000,-1000.0,0.00011378,2]
[422981490,1779702644000,-500.0,0.00012054,2]
[422981489,1779702644000,-3464.3,0.00011953,2]
[422981491,1779702644000,-204.0,0.00012096,2]
[422981488,1779702644000,-500.0,0.0001178,2]
[422981510,1779702644000,-231.0,0.00014096,2]
[422981528,1779702644000,-326.0419999,0.00017502,2]
[422981514,1779702644000,-183.6665112,0.00014594,2]
[422981536,1779702644000,-1024.915002,0.00017515,2]
[422981530,1779702644000,-376.0150703,0.00017502,2]
[422981532,1779702644000,-1810.4860825,0.00017508,2]
[422981531,1779702644000,-456.7008752,0.00017502,2]
[422981529,1779702644000,-151.0,0.00017502,2]
[422981538,1779702644000,-617.948151,0.00017872,2]
[422981533,1779702644000,-233.597877,0.00017515,2]
[422981537,1779702644000,-160.0,0.00017872,2]
[422981541,1779702644000,-1961.896389,0.00017959,2]
[422981544,1779702644000,-213.63690086,0.00018096,2]
[422981543,1779702644000,-233.597878,0.00017978,2]
[422981542,1779702644000,-3763.792779,0.00017959,2]
[422981546,1779702644000,-48.17108027,0.00018226,2]
[422981512,1779702644000,-3464.3,0.00014419,2]
[422981539,1779702644000,-1075.896302,0.00017872,2]
[422981534,1779702644000,-160.0,0.00017515,2]
[422981540,1779702644000,-160.0,0.00017959,2]
[422981545,1779702644000,-71.36309914,0.00018096,2]
[422981535,1779702644000,-592.457501,0.00017515,2]
[422981513,1779702644000,-1368.54,0.0001452,2]
[422981517,1779702644000,-3464.3,0.00014967,2]
[422981516,1779702644000,-187.321,0.00014793,2]
[422981515,1779702644000,-3464.3,0.00014693,2]
[422981520,1779702644000,-3464.34,0.00015241,2]
[422981518,1779702644000,-1000.0,0.00015144,2]
[422981519,1779702644000,-791.0,0.00015144,2]
[422981522,1779702644000,-200.0,0.00016438,2]
[422981523,1779702644000,-1000.0,0.00016659,2]
[422981524,1779702644000,-1000.0,0.00016659,2]
[422981525,1779702644000,-1413.0,0.00016939,2]
[422981526,1779702644000,-150.304,0.00016939,2]
[422981527,1779702644000,-150.846,0.00016939,2]
[422981521,1779702644000,-258.0,0.00016096,2]
[422981558,1779702647000,-324.4468764,0.00018237,2]
[422981554,1779702647000,-102.82891973,0.00018226,2]
[422981555,1779702647000,-151.0,0.00018237,2]
[422981557,1779702647000,-151.0,0.00018237,2]
[422981556,1779702647000,-151.0,0.00018237,2]
[422981560,1779702647000,-1000.0,0.00018325,2]
[422981559,1779702647000,-151.0,0.00018237,2]
[422981564,1779702647000,-433.4005469,0.00018356,2]
[422981561,1779702647000,-1000.0,0.00018325,2]
[422981563,1779702647000,-151.0,0.00018356,2]
[422981566,1779702647000,-247.6553781,0.00018361,7]
[422981565,1779702647000,-325.8803697,0.00018356,2]
[422981567,1779702647000,-1066.423502,0.0001839,2]
[422981568,1779702647000,-87.90073674,0.0001863,2]
[422981562,1779702647000,-579.0,0.00018325,2]
[422981577,1779702648000,-170.64116875,0.00018942,2]
[422981569,1779702648000,-132.34926326,0.0001863,2]
[422981570,1779702648000,-170.64116876,0.00018665,2]
[422981571,1779702648000,-160.0,0.00018701,2]
[422981572,1779702648000,-817.119854,0.00018701,2]
[422981573,1779702648000,-1474.239708,0.00018701,2]
[422981575,1779702648000,-3531.413501,0.00018856,2]
[422981576,1779702648000,-220.25,0.00018904,2]
[422981574,1779702648000,-1112.306672,0.00018766,2]
[422981579,1779702648000,-160.0,0.00019083,2]
[422981583,1779702648000,-161.457898,0.00019083,2]
[422981585,1779702648000,-2093.598674,0.00019083,2]
[422981584,1779702648000,-160.0,0.00019083,2]
[422981578,1779702648000,-186.297573,0.00019063,2]
[422981582,1779702648000,-196.222218,0.00019083,2]
[422981581,1779702648000,-7401.558047,0.00019083,2]
[422981586,1779702648000,-4027.197349,0.00019083,2]
[422981580,1779702648000,-3780.779023,0.00019083,2]
[422981587,1779702649000,-220.25,0.00019178,2]
[422981595,1779702649000,-220.25,0.00019452,2]
[422981590,1779702649000,-294.333326,0.00019274,2]
[422981591,1779702649000,-160.0,0.00019274,2]
[422981593,1779702649000,-1241.587264,0.00019274,2]
[422981592,1779702649000,-700.793632,0.00019274,2]
[422981597,1779702649000,-160.0,0.00019475,2]
[422981594,1779702649000,-403.9740495,0.00019332,2]
[422981596,1779702649000,-190.529887,0.00019466,2]
[422981599,1779702649000,-316.324713,0.00019475,2]
[422981598,1779702649000,-238.162356,0.00019475,2]
[422981588,1779702649000,-170.64116875,0.00019219,2]
[422981601,1779702649000,-1571.56141051,0.00019558,2]
[422981611,1779702649000,-42929.05425531,0.00019864,30]
[422981605,1779702649000,-640.907009,0.0001967,2]
[422981609,1779702649000,-183.6665112,0.00019856,2]
[422981608,1779702649000,-170.64116875,0.00019772,2]
[422981610,1779702649000,-160.0,0.00019864,120]
[422981607,1779702649000,-564.33656365,0.00019764,2]
[422981604,1779702649000,-400.453504,0.0001967,2]
[422981602,1779702649000,-1470.815737,0.00019636,2]
[422981603,1779702649000,-160.0,0.0001967,2]
[422981606,1779702649000,-220.25,0.00019726,2]
[422981600,1779702649000,-170.64116875,0.00019495,2]
[422981612,1779702711000,-384.01,8.381e-05,2]
[422981617,1779702828000,-119.62,8.381e-05,2]
[422981619,1779702882000,-300.0,8.38e-05,2]
[422981651,1779702935000,-1200.0,8.38e-05,2]
[422981879,1779702989000,-300.0,8.38e-05,2]
[422981880,1779703042000,-1200.0,8.38e-05,2]
[422981884,1779703095000,-500.0,8.38e-05,2]
[422981885,1779703149000,-500.0,8.379e-05,2]
[422981886,1779703202000,-500.0,8.379e-05,2]
[422981887,1779703256000,-500.0,8.378e-05,2]
[422981888,1779703309000,-500.0,8.378e-05,2]
[422981889,1779703469000,-2713.70797137,8.209e-05,2]
[422981891,1779703488000,-2206.721441,8.209e-05,2]
[422981892,1779703541000,-300.0,8.29e-05,2]
[422981894,1779703542000,-557.42915938,8.291e-05,2]
[422981893,1779703542000,-500.0,8.291e-05,2]
[422981895,1779703542000,-500.0,8.291e-05,2]
[422981896,1779703542000,-500.0,8.291e-05,2]
[422981898,1779703542000,-500.0,8.291e-05,2]
[422981899,1779703542000,-500.0,8.291e-05,2]
[422981901,1779703542000,-230.36731329,8.291e-05,2]
[422981900,1779703542000,-500.0,8.291e-05,2]
[422981897,1779703542000,-282.45521271,8.291e-05,2]
[422981902,1779703594000,-269.63268671,8.291e-05,2]
[422981903,1779703628000,-163.30699563,8.29e-05,2]
[422981907,1779703637000,-500.0,8.29e-05,2]
[422981904,1779703637000,-336.69300437,8.29e-05,2]
[422981908,1779703637000,-500.0,8.29e-05,2]
[422981905,1779703637000,-500.0,8.29e-05,2]
[422981906,1779703637000,-500.0,8.29e-05,2]
[422981910,1779703637000,-500.0,8.29e-05,2]
[422981911,1779703637000,-441.32011131,8.29e-05,2]
[422981909,1779703637000,-500.0,8.29e-05,2]
[422981912,1779703648000,-58.67988869,8.29e-05,2]
[422981914,1779703652000,-500.0,8.29e-05,2]
[422981915,1779703652000,-76.01604833,8.29e-05,2]
[422981913,1779703652000,-500.0,8.29e-05,2]
[422981916,1779703701000,-423.98395167,8.29e-05,2]
[422981917,1779703755000,-378.24552127,8.29e-05,2]
[422981918,1779703808000,-150.0,8.291e-05,2]
[422981998,1779703832000,-237.37396212,8.379e-05,2]
[422981991,1779703832000,-195.22034041,8.379e-05,2]
[422982000,1779703832000,-146.78156204,8.379e-05,2]
[422981994,1779703832000,-262.62603788,8.379e-05,2]
[422982011,1779703832000,-500.0,8.379e-05,2]
[422982006,1779703832000,-500.0,8.379e-05,2]
[422982008,1779703832000,-500.0,8.379e-05,2]
[422982014,1779703832000,-500.0,8.379e-05,2]
[422981987,1779703832000,-304.77965959,8.379e-05,2]
[422982004,1779703832000,-353.21843796,8.379e-05,2]
[422981984,1779703832000,-500.0,8.379e-05,2]
[422981957,1779703832000,-500.0,8.379e-05,2]
[422981963,1779703832000,-500.0,8.379e-05,2]
[422981965,1779703832000,-946.24,8.379e-05,2]
[422981961,1779703832000,-500.0,8.379e-05,2]
[422981959,1779703832000,-500.0,8.379e-05,2]
[422982016,1779703832000,-500.0,8.379e-05,2]
[422981947,1779703832000,-2225.40672218,8.291e-05,2]
[422981940,1779703832000,-1933.23575618,8.291e-05,2]
[422981955,1779703832000,-500.0,8.379e-05,2]
[422981953,1779703832000,-321.68209061,8.379e-05,2]
[422981949,1779703832000,-500.0,8.379e-05,2]
[422981937,1779703832000,-841.35752164,8.291e-05,2]
[422981968,1779703832000,-500.0,8.379e-05,2]
[422982020,1779703832000,-500.0,8.379e-05,2]
[422981951,1779703832000,-500.0,8.379e-05,2]
[422982022,1779703832000,-500.0,8.379e-05,2]
[422982018,1779703832000,-500.0,8.379e-05,2]
[422982066,1779703832000,-500.0,8.38e-05,2]
[422982070,1779703832000,-500.0,8.38e-05,2]
[422982068,1779703832000,-501.99498257,8.38e-05,2]
[422982064,1779703832000,-500.0,8.38e-05,2]
[422982062,1779703832000,-500.0,8.38e-05,2]
[422982060,1779703832000,-500.0,8.38e-05,2]
[422982050,1779703832000,-315.20887041,8.38e-05,2]
[422982044,1779703832000,-224.52821222,8.38e-05,2]
[422982048,1779703832000,-500.0,8.38e-05,2]
[422982042,1779703832000,-500.0,8.38e-05,2]
[422982054,1779703832000,-278.1,8.38e-05,2]
[422982046,1779703832000,-500.0,8.38e-05,2]
[422982058,1779703832000,-500.0,8.38e-05,2]
[422982052,1779703832000,-500.0,8.38e-05,2]
[422982040,1779703832000,-312.01483167,8.38e-05,2]
[422982032,1779703832000,-500.0,8.38e-05,2]
[422982038,1779703832000,-503.63,8.38e-05,2]
[422982036,1779703832000,-500.0,8.38e-05,2]
[422982030,1779703832000,-500.0,8.38e-05,2]
[422982026,1779703832000,-500.0,8.379e-05,2]
[422982034,1779703832000,-500.0,8.38e-05,2]
[422982024,1779703832000,-500.0,8.379e-05,2]
[422982056,1779703832000,-500.0,8.38e-05,2]
[422982028,1779703832000,-269.59582555,8.379e-05,2]
[422982132,1779703833000,-500.0,8.653e-05,2]
[422982130,1779703833000,-500.0,8.653e-05,2]
[422982128,1779703833000,-300.0,8.548e-05,2]
[422982125,1779703833000,-300.0,8.548e-05,2]
[422982138,1779703833000,-500.0,8.653e-05,2]
[422982137,1779703833000,-500.0,8.653e-05,2]
[422982127,1779703833000,-300.0,8.548e-05,2]
[422982119,1779703833000,-300.0,8.548e-05,2]
[422982131,1779703833000,-500.0,8.653e-05,2]
[422982126,1779703833000,-300.0,8.548e-05,2]
[422982134,1779703833000,-500.0,8.653e-05,2]
[422982149,1779703833000,-307.2662933,8.653e-05,2]
[422982133,1779703833000,-500.0,8.653e-05,2]
[422982136,1779703833000,-367.88040388,8.653e-05,2]
[422982144,1779703833000,-500.0,8.653e-05,2]
[422982150,1779703833000,-507.86,8.653e-05,2]
[422982147,1779703833000,-500.0,8.653e-05,2]
[422982139,1779703833000,-500.0,8.653e-05,2]
[422982140,1779703833000,-946.24,8.653e-05,2]
[422982145,1779703833000,-500.0,8.653e-05,2]
[422982141,1779703833000,-500.0,8.653e-05,2]
[422982143,1779703833000,-500.0,8.653e-05,2]
[422982117,1779703833000,-300.0,8.548e-05,2]
[422982142,1779703833000,-500.0,8.653e-05,2]
[422982146,1779703833000,-500.0,8.653e-05,2]
[422982135,1779703833000,-500.0,8.653e-05,2]
[422982124,1779703833000,-300.0,8.548e-05,2]
[422982104,1779703833000,-500.0,8.38e-05,2]
[422982118,1779703833000,-300.0,8.548e-05,2]
[422982148,1779703833000,-500.0,8.653e-05,2]
[422982072,1779703833000,-500.0,8.38e-05,2]
[422982074,1779703833000,-500.0,8.38e-05,2]
[422982076,1779703833000,-500.0,8.38e-05,2]
[422982080,1779703833000,-502.97467365,8.38e-05,2]
[422982078,1779703833000,-1359.7895,8.38e-05,2]
[422982087,1779703833000,-500.0,8.38e-05,2]
[422982083,1779703833000,-500.0,8.38e-05,2]
[422982085,1779703833000,-221.85887505,8.38e-05,2]
[422982089,1779703833000,-500.0,8.38e-05,2]
[422982102,1779703833000,-162.14606535,8.38e-05,2]
[422982100,1779703833000,-500.0,8.38e-05,2]